fUST/lending_fUST_20240117
["ID","MTS","AMOUNT","RATE_DAILY","PERIOD"]
[311847200,1705461045638,-500.0,0.00030273,2]
[311847201,1705461045646,-500.0,0.00030273,2]
[311847202,1705461045656,-500.0,0.00030273,2]
[311847203,1705461045665,-500.0,0.00030273,2]
[311847204,1705461045674,-500.0,0.00030273,2]
[311847205,1705461045684,-640.90235997,0.00030273,2]
[311847206,1705461045694,-635.41544431,0.00030273,2]
[311847207,1705461045708,-500.0,0.00030273,2]
[311847208,1705461045717,-500.0,0.00030273,2]
[311847210,1705461045726,-500.0,0.00030273,2]
[311847211,1705461045737,-500.0,0.00030273,2]
[311847212,1705461045746,-1881.19,0.00030273,2]
[311847213,1705461045755,-829.78,0.00030273,2]
[311847214,1705461045764,-500.0,0.00030273,2]
[311847215,1705461045774,-500.0,0.00030273,2]
[311847217,1705461045784,-500.0,0.00030273,2]
[311847219,1705461045794,-584.47,0.00030273,2]
[311847220,1705461045803,-500.0,0.00030273,2]
[311847221,1705461045812,-500.0,0.00030273,2]
[311847222,1705461045821,-3456.82,0.00030273,2]
[311847223,1705461045832,-1426.44,0.00030273,2]
[311847225,1705461045841,-500.0,0.00030273,2]
[311847226,1705461045850,-500.0,0.00030273,2]
[311847227,1705461045859,-566.36275918,0.00030273,2]
[311847228,1705461045870,-500.0,0.00030273,2]
[311847229,1705461045879,-7290.11,0.00030273,2]
[311847230,1705461045888,-500.0,0.00030273,2]
[311847231,1705461045898,-500.0,0.00030273,2]
[311847232,1705461045908,-500.0,0.00030273,2]
[311847233,1705461045917,-500.0,0.00030273,2]
[311847234,1705461045927,-2266.9,0.00030273,2]
[311847235,1705461045937,-500.0,0.00030273,2]
[311847236,1705461045947,-229.53999587,0.00030273,2]
[311847237,1705461045957,-500.0,0.00030273,2]
[311847238,1705461045966,-325.42261473,0.00030273,2]
[311847239,1705461045975,-314.44072528,0.00030273,2]
[311847240,1705461045984,-19534.99,0.00030273,2]
[311847241,1705461045993,-797.15,0.00030273,2]
[311847242,1705461046003,-2555.96,0.00030273,2]
[311847243,1705461046013,-500.0,0.00030273,2]
[311847244,1705461046022,-261.31076788,0.00030273,2]
[311847245,1705461046032,-500.0,0.00030273,2]
[311847246,1705461046041,-540.39,0.00030273,2]
[311847247,1705461046050,-420.10258733,0.00030273,2]
[311847248,1705461046059,-500.0,0.00030273,2]
[311847249,1705461046069,-500.0,0.00030273,2]
[311847250,1705461046078,-500.0,0.00030273,2]
[311847251,1705461046088,-241.37531993,0.00030273,2]
[311847252,1705461046099,-500.0,0.00030273,2]
[311847253,1705461046108,-1673.01,0.00030273,2]
[311847254,1705461046119,-500.0,0.00030273,2]
[311847255,1705461046129,-600.88725899,0.00030273,2]
[311847256,1705461046138,-500.0,0.00030273,2]
[311847257,1705461046148,-500.0,0.00030273,2]
[311847258,1705461046157,-500.0,0.00030273,2]
[311847259,1705461046166,-500.0,0.00030273,2]
[311847260,1705461046175,-500.18169587,0.00030273,2]
[311847261,1705461046185,-8120.23,0.00030273,2]
[311847262,1705461046194,-915.16,0.00030273,2]
[311847263,1705461046203,-501.41,0.00030273,2]
[311847264,1705461046212,-500.0,0.00030273,2]
[311847265,1705461046221,-10433.23,0.00030273,2]
[311847266,1705461046230,-456.79877671,0.00030273,2]
[311847267,1705461046240,-36450.18,0.00030273,2]
[311847268,1705461046249,-500.0,0.00030273,2]
[311847269,1705461046259,-3417.38,0.00030273,2]
[311847270,1705461046269,-557.81864135,0.00030273,2]
[311847271,1705461046278,-500.0,0.00030273,2]
[311847272,1705461046287,-2837.84,0.00030273,2]
[311847273,1705461046296,-500.0,0.00030273,2]
[311847274,1705461046305,-500.0,0.00030273,2]
[311847275,1705461046314,-501.62550056,0.00030273,2]
[311847276,1705461046323,-500.0,0.00030273,2]
[311847277,1705461046332,-500.0,0.00030273,2]
[311847278,1705461046342,-500.0,0.00030273,2]
[311847279,1705461046351,-500.0,0.00030273,2]
[311847280,1705461046361,-500.0,0.00030273,2]
[311847281,1705461046370,-500.0,0.00030273,2]
[311847282,1705461046379,-500.0,0.00030273,2]
[311847283,1705461046389,-500.0,0.00030273,2]
[311847284,1705461046398,-3144.29,0.00030273,2]
[311847285,1705461046407,-500.0,0.00030406,4]
[311847286,1705461046416,-500.0,0.00030406,4]
[311847287,1705461046425,-480.77322311,0.00030406,4]
[311847288,1705461046434,-500.0,0.00030406,4]
[311847289,1705461046444,-455.34731137,0.00030406,4]
[311847290,1705461046453,-500.0,0.00030406,4]
[311847291,1705461046462,-500.0,0.00030406,4]
[311847292,1705461046471,-500.0,0.00030406,4]
[311847293,1705461046480,-561.04556538,0.00030406,4]
[311847294,1705461046489,-231.7989992,0.00030406,4]
[311847295,1705461046499,-500.0,0.00030406,4]
[311847296,1705461046508,-500.0,0.00030406,4]
[311847297,1705461046517,-500.0,0.00030406,4]
[311847298,1705461046526,-500.0,0.00030406,4]
[311847299,1705461046535,-500.0,0.00030406,4]
[311847300,1705461046544,-500.0,0.00030406,4]
[311847301,1705461046553,-500.0,0.00030406,4]
[311847302,1705461046563,-500.0,0.00030406,4]
[311847303,1705461046572,-500.0,0.00030406,4]
[311847304,1705461046581,-500.0,0.00030406,4]
[311847305,1705461046591,-500.0,0.00030406,4]
[311847306,1705461046600,-580.32160343,0.00030406,4]
[311847307,1705461046610,-500.0,0.00030406,4]
[311847308,1705461046620,-500.0,0.00030406,4]
[311847309,1705461046629,-500.0,0.00030406,4]
[311847310,1705461046638,-500.0,0.00030406,4]
[311847311,1705461046647,-500.0,0.00030406,4]
[311847312,1705461046656,-500.0,0.00030406,4]
[311847313,1705461046666,-500.0,0.00030406,4]
[311847314,1705461046675,-500.0,0.00030406,4]
[311847315,1705461046748,-500.0,0.00030406,4]
[311847316,1705461046758,-500.0,0.00030406,4]
[311847317,1705461046768,-500.0,0.00030406,4]
[311847318,1705461046779,-500.0,0.00030406,4]
[311847319,1705461046788,-500.0,0.00030406,4]
[311847320,1705461046799,-500.0,0.00030406,4]
[311847321,1705461046809,-500.0,0.00030406,4]
[311847322,1705461046818,-500.0,0.00030406,4]
[311847323,1705461046828,-500.0,0.00030406,4]
[311847324,1705461046837,-500.0,0.00030406,4]
[311847325,1705461046847,-500.0,0.00030406,4]
[311847326,1705461046857,-500.0,0.00030406,4]
[311847327,1705461046867,-556.29459764,0.00030406,4]
[311847328,1705461046876,-500.0,0.00030406,4]
[311847329,1705461046885,-500.0,0.00030406,4]
[311847330,1705461046894,-500.0,0.00030408,2]
[311847331,1705461046903,-2328.39,0.00030409,2]
[311847332,1705461046912,-2328.39,0.00030409,2]
[311847333,1705461046921,-2328.39,0.00030409,2]
[311847334,1705461046930,-2328.39,0.00030409,2]
[311847335,1705461046940,-2328.39,0.00030409,2]
[311847336,1705461046949,-2328.39,0.00030409,2]
[311847337,1705461046958,-2328.39,0.00030409,2]
[311847338,1705461046967,-2328.39,0.00030409,2]
[311847339,1705461046976,-2328.39,0.00030409,2]
[311847340,1705461046985,-2328.39,0.00030409,2]
[311847341,1705461046994,-500.0,0.00030409,2]
[311847342,1705461047003,-500.0,0.00030409,2]
[311847343,1705461047013,-282.0,0.00030409,2]
[311847344,1705461047022,-258.27707,0.00030409,2]
[311847345,1705461047031,-330.6015298,0.0003041,2]
[311847346,1705461047040,-503.33303702,0.0003041,2]
[311847347,1705461047049,-500.0,0.0003041,2]
[311847348,1705461047058,-500.0,0.0003041,2]
[311847349,1705461047067,-500.0,0.0003041,2]
[311847350,1705461047077,-500.0,0.0003041,2]
[311847351,1705461047087,-500.0,0.0003041,2]
[311847352,1705461047097,-500.0,0.0003041,2]
[311847353,1705461047107,-500.0,0.0003041,2]
[311847354,1705461047117,-475.86267501,0.0003041,2]
[311847355,1705461047126,-500.0,0.0003041,2]
[311847356,1705461047135,-500.0,0.0003041,2]
[311847357,1705461047144,-150.0,0.0003041,2]
[311847358,1705461047153,-500.0,0.0003041,4]
[311847359,1705461047162,-500.0,0.0003041,2]
[311847360,1705461047171,-603.91,0.0003041,2]
[311847361,1705461047180,-509.58387013,0.0003041,2]
[311847362,1705461047190,-500.0,0.0003041,2]
[311847363,1705461047199,-500.0,0.0003041,2]
[311847364,1705461047208,-508.74722001,0.0003041,2]
[311847365,1705461047217,-500.0,0.0003041,2]
[311847366,1705461047227,-500.0,0.0003041,2]
[311847367,1705461047236,-500.0,0.0003041,2]
[311847368,1705461047246,-1000.0,0.0003041,2]
[311847369,1705461047255,-500.0,0.0003041,2]
[311847370,1705461047264,-500.0,0.0003041,2]
[311847371,1705461047274,-500.0,0.0003041,2]
[311847372,1705461047283,-500.0,0.0003041,2]
[311847373,1705461047294,-798.45,0.0003041,2]
[311847374,1705461047303,-1000.0,0.0003041,2]
[311847375,1705461047312,-500.0,0.0003041,2]
[311847376,1705461047322,-500.0,0.0003041,2]
[311847377,1705461047331,-515.41129374,0.0003041,2]
[311847378,1705461047341,-2147.42,0.0003041,2]
[311847379,1705461047350,-500.0,0.0003041,2]
[311847380,1705461047360,-500.0,0.0003041,2]
[311847381,1705461047369,-500.0,0.0003041,2]
[311847382,1705461047378,-500.0,0.0003041,2]
[311847383,1705461047387,-500.0,0.0003041,2]
[311847384,1705461047397,-500.0,0.0003041,2]
[311847385,1705461047406,-500.0,0.0003041,2]
[311847386,1705461047415,-500.0,0.0003041,2]
[311847387,1705461047425,-500.0,0.0003041,2]
[311847388,1705461047434,-500.0,0.0003041,2]
[311847389,1705461047444,-875.33,0.0003041,2]
[311847390,1705461047453,-500.0,0.0003041,2]
[311847391,1705461047462,-500.96646124,0.0003041,2]
[311847392,1705461047471,-366.65755106,0.0003041,2]
[311847393,1705461047480,-500.0,0.0003041,2]
[311847394,1705461047489,-500.0,0.0003041,2]
[311847395,1705461047498,-502.33336312,0.0003041,2]
[311847396,1705461047507,-500.0,0.0003041,2]
[311847397,1705461047516,-500.0,0.0003041,2]
[311847398,1705461047525,-500.0,0.0003041,2]
[311847399,1705461047534,-500.0,0.0003041,2]
[311847400,1705461047543,-1665.08,0.0003041,2]
[311847401,1705461047553,-500.0,0.0003041,2]
[311847402,1705461047562,-500.0,0.0003041,2]
[311847403,1705461047571,-500.0,0.0003041,2]
[311847404,1705461047580,-500.0,0.0003041,2]
[311847405,1705461047590,-500.0,0.0003041,2]
[311847406,1705461047600,-500.0,0.0003041,2]
[311847407,1705461047609,-500.0,0.0003041,2]
[311847408,1705461047619,-500.0,0.0003041,2]
[311847409,1705461047628,-574.68,0.0003041,2]
[311847410,1705461047637,-388.70818294,0.0003041,2]
[311847411,1705461047646,-500.0,0.0003041,2]
[311847412,1705461047655,-500.0,0.0003041,2]
[311847413,1705461047665,-500.0,0.0003041,2]
[311847414,1705461047675,-500.0,0.0003041,2]
[311847415,1705461047684,-500.0,0.0003041,2]
[311847416,1705461047694,-500.0,0.0003041,2]
[311847417,1705461047709,-500.0,0.0003041,2]
[311847418,1705461047719,-500.0,0.0003041,2]
[311847419,1705461047728,-500.0,0.0003041,2]
[311847420,1705461047738,-500.0,0.0003041,2]
[311847421,1705461047748,-500.0,0.0003041,2]
[311847422,1705461047757,-500.0,0.0003041,2]
[311847423,1705461047767,-500.0,0.0003041,2]
[311847424,1705461047778,-1433.81,0.0003041,2]
[311847425,1705461047789,-311.47511361,0.0003041,2]
[311847426,1705461047798,-568.09,0.0003041,2]
[311847427,1705461047807,-500.0,0.0003041,2]
[311847428,1705461047816,-501.49306401,0.0003041,2]
[311847429,1705461047825,-500.0,0.0003041,2]
[311847430,1705461047837,-500.0,0.0003041,2]
[311847431,1705461047846,-500.0,0.0003041,2]
[311847432,1705461047855,-932.6,0.0003041,2]
[311847433,1705461047865,-1660.81,0.0003041,2]
[311847434,1705461047874,-500.0,0.0003041,2]
[311847435,1705461047883,-500.0,0.0003041,2]
[311847436,1705461047892,-500.0,0.0003041,2]
[311847437,1705461047901,-674.63,0.0003041,2]
[311847438,1705461047910,-319.75089756,0.0003041,2]
[311847439,1705461047919,-500.0,0.0003041,2]
[311847440,1705461047929,-500.0,0.0003041,2]
[311847441,1705461047937,-506.80923371,0.0003041,2]
[311847442,1705461047947,-563.75,0.0003041,2]
[311847443,1705461047955,-513.66,0.0003041,2]
[311847444,1705461047964,-1257.56,0.0003041,2]
[311847445,1705461047974,-176.64577153,0.0003041,2]
[311847446,1705461047983,-923.79,0.0003041,2]
[311847447,1705461048055,-500.0,0.0003041,2]
[311847448,1705461048065,-500.0,0.0003041,2]
[311847449,1705461048075,-500.0,0.0003041,2]
[311847450,1705461048085,-559.59,0.0003041,2]
[311847451,1705461048095,-500.0,0.0003041,2]
[311847452,1705461048104,-501.19,0.0003041,2]
[311847453,1705461048113,-500.0,0.0003041,2]
[311847454,1705461048123,-500.0,0.0003041,2]
[311847455,1705461048132,-500.0,0.0003041,2]
[311847456,1705461048141,-815.02,0.0003041,2]
[311847457,1705461048150,-490.92752769,0.0003041,2]
[311847458,1705461048159,-500.0,0.0003041,2]
[311847459,1705461048168,-500.0,0.0003041,2]
[311847460,1705461048178,-687.21,0.0003041,2]
[311847461,1705461048187,-535.01729986,0.0003041,2]
[311847462,1705461048196,-500.0,0.0003041,2]
[311847463,1705461048205,-500.0,0.0003041,2]
[311847464,1705461048215,-500.0,0.0003041,2]
[311847465,1705461048223,-861.48,0.0003041,2]
[311847466,1705461048233,-500.0,0.0003041,2]
[311847467,1705461048242,-1201.21,0.0003041,2]
[311847468,1705461048252,-500.0,0.0003041,2]
[311847469,1705461048261,-7817.57,0.0003041,2]
[311847470,1705461048270,-506.24435026,0.0003041,2]
[311847471,1705461048280,-347.50098004,0.0003041,2]
[311847472,1705461048289,-526.16,0.0003041,2]
[311847473,1705461048298,-500.0,0.0003041,2]
[311847474,1705461048307,-500.0,0.0003041,2]
[311847475,1705461048317,-1878.8,0.0003041,2]
[311847476,1705461048326,-467.17315,0.0003041,2]
[311847477,1705461048335,-1556.24,0.0003041,2]
[311847478,1705461048346,-500.0,0.0003041,2]
[311847479,1705461048355,-500.0,0.0003041,2]
[311847480,1705461048364,-500.0,0.0003041,2]
[311847481,1705461048373,-761.08,0.0003041,2]
[311847482,1705461048382,-500.0,0.0003041,2]
[311847483,1705461048391,-3050.76,0.0003041,2]
[311847484,1705461048400,-500.0,0.0003041,2]
[311847485,1705461048409,-500.0,0.0003041,2]
[311847486,1705461048419,-500.0,0.0003041,2]
[311847487,1705461048428,-1069.0,0.0003041,2]
[311847488,1705461048437,-1117.44,0.0003041,2]
[311847489,1705461048446,-500.0,0.0003041,2]
[311847490,1705461048456,-500.0,0.0003041,2]
[311847491,1705461048465,-500.0,0.0003041,2]
[311847492,1705461048474,-1831.41,0.0003041,2]
[311847493,1705461048483,-500.0,0.0003041,2]
[311847494,1705461048492,-535.66,0.0003041,2]
[311847495,1705461048502,-500.0,0.0003041,2]
[311847496,1705461048511,-443.58752436,0.0003041,2]
[311847497,1705461048520,-5163.32,0.0003041,2]
[311847498,1705461048529,-1053.57,0.0003041,2]
[311847499,1705461048538,-500.0,0.0003041,2]
[311847500,1705461048548,-508.30920079,0.0003041,2]
[311847501,1705461048557,-500.0,0.0003041,2]
[311847502,1705461048566,-500.0,0.0003041,2]
[311847503,1705461048576,-500.0,0.0003041,2]
[311847504,1705461048586,-406.59514001,0.0003041,2]
[311847505,1705461048595,-500.0,0.0003041,2]
[311847506,1705461048605,-500.0,0.0003041,2]
[311847507,1705461048614,-500.0,0.0003041,2]
[311847508,1705461048624,-1881.19,0.0003041,2]
[311847509,1705461048633,-829.78,0.0003041,2]
[311847510,1705461048643,-500.0,0.0003041,2]
[311847511,1705461048652,-500.0,0.0003041,2]
[311847512,1705461048661,-500.0,0.0003041,2]
[311847513,1705461048670,-584.47,0.0003041,2]
[311847514,1705461048680,-500.0,0.0003041,2]
[311847515,1705461048689,-500.0,0.0003041,2]
[311847516,1705461048703,-3456.82,0.0003041,2]
[311847517,1705461048713,-1426.44,0.0003041,2]
[311847518,1705461048722,-500.0,0.0003041,2]
[311847519,1705461048731,-500.0,0.0003041,2]
[311847520,1705461048740,-500.0,0.0003041,2]
[311847521,1705461048750,-7290.11,0.0003041,2]
[311847522,1705461048759,-500.0,0.0003041,2]
[311847523,1705461048768,-523.68136719,0.0003041,2]
[311847524,1705461048777,-500.0,0.0003041,2]
[311847525,1705461048788,-500.0,0.0003041,2]
[311847526,1705461048797,-2266.9,0.0003041,2]
[311847527,1705461048806,-500.0,0.0003041,2]
[311847528,1705461048815,-500.0,0.0003041,2]
[311847529,1705461048825,-19534.99,0.0003041,2]
[311847530,1705461048834,-797.15,0.0003041,2]
[311847531,1705461048843,-2555.96,0.0003041,2]
[311847532,1705461048852,-500.0,0.0003041,2]
[311847533,1705461048861,-500.0,0.0003041,2]
[311847534,1705461048870,-540.39,0.0003041,2]
[311847535,1705461048879,-500.0,0.0003041,2]
[311847536,1705461048889,-500.0,0.0003041,2]
[311847537,1705461048898,-500.0,0.0003041,2]
[311847538,1705461048907,-500.0,0.0003041,2]
[311847539,1705461048916,-1673.01,0.0003041,2]
[311847540,1705461048925,-500.0,0.0003041,2]
[311847541,1705461048934,-500.0,0.0003041,2]
[311847542,1705461048943,-500.0,0.0003041,2]
[311847543,1705461048952,-500.0,0.0003041,2]
[311847544,1705461048961,-500.0,0.0003041,2]
[311847545,1705461048969,-8120.23,0.0003041,2]
[311847546,1705461048978,-915.16,0.0003041,2]
[311847547,1705461048987,-501.41,0.0003041,2]
[311847548,1705461048996,-500.0,0.0003041,2]
[311847549,1705461049005,-10433.23,0.0003041,2]
[311847550,1705461049013,-36450.18,0.0003041,2]
[311847551,1705461049022,-499.74490319,0.0003041,2]
[311847552,1705461049031,-3417.38,0.0003041,2]
[311847553,1705461049040,-500.0,0.0003041,2]
[311847554,1705461049050,-2837.84,0.0003041,2]
[311847555,1705461049059,-500.0,0.0003041,2]
[311847556,1705461049069,-500.0,0.0003041,2]
[311847557,1705461049079,-500.0,0.0003041,2]
[311847558,1705461049088,-500.0,0.0003041,2]
[311847559,1705461049098,-500.0,0.0003041,2]
[311847560,1705461049107,-500.0,0.0003041,2]
[311847561,1705461049116,-500.0,0.0003041,2]
[311847562,1705461049126,-500.0,0.0003041,2]
[311847563,1705461049135,-500.0,0.0003041,2]
[311847564,1705461049144,-500.0,0.0003041,2]
[311847565,1705461049154,-3144.29,0.0003041,2]
[311847566,1705461049164,-154.54943874,0.00030439,7]
[311847567,1705461049172,-122.67704641,0.00030447,7]
[311847568,1705461049551,-153.0,0.00029178,2]
[311847569,1705461049560,-153.0,0.00029315,2]
[311847570,1705461049571,-198.957615,0.00029315,2]
[311847571,1705461049580,-500.0,0.00030136,2]
[311847572,1705461049591,-500.0,0.00030273,2]
[311847573,1705461049601,-500.0,0.0003041,2]
[311847574,1705461049611,-59.09055111,0.00030447,7]
[311847575,1705461049620,-154.27370264,0.00030455,7]
[311847576,1705461049629,-181.76759752,0.00030459,7]
[311847577,1705461049638,-155.0,0.00030506,2]
[311847578,1705461049647,-181.76759752,0.00030533,7]
[311847579,1705461049657,-500.0,0.00030545,2]
[311847580,1705461049666,-500.0,0.00030545,2]
[311847581,1705461049675,-500.0,0.00030546,2]
[311847582,1705461049684,-500.0,0.00030546,2]
[311847583,1705461049694,-363.7894806,0.00030547,2]
[311847639,1705462232253,-154.9690062,0.00021971,2]
[311847641,1705462232262,-154.9690062,0.00021972,4]
[311847643,1705462232271,-290.34519337,0.00021999,2]
[311847645,1705462232281,-12673.87103692,0.00022909,2]
[311847647,1705462232290,-2762.4230673,0.0002291,5]
[311847649,1705462232299,-1986.59469693,0.00024,2]
[311847651,1705462232308,-160.527821,0.00024722,2]
[311847653,1705462232317,-200.0,0.00025199,7]
[311847654,1705462232327,-11833.1483042,0.00027233,2]
[311847656,1705462232336,-154.98450155,0.00027492,2]
[311847658,1705462232345,-280.0,0.00027719,15]
[311847660,1705462232356,-351.93815475,0.0002831,2]
[311847662,1705462232365,-156.1229828,0.00029036,2]
[311847664,1705462232375,-5344.60324283,0.00029411,4]
[311847666,1705462232385,-392.92110703,0.0002942,4]
[311847668,1705462232395,-403.15926237,0.00029429,4]
[311847670,1705462232404,-154.65859955,0.00029835,2]
[311847672,1705462232413,-156.1690088,0.0003,4]
[311847674,1705462232423,-389.4411084,0.0003,4]
[311847676,1705462232432,-682.08739099,0.0003,3]
[311847678,1705462232441,-163.77478219,0.0003,5]
[311847680,1705462232450,-8428.01395511,0.0003,2]
[311847681,1705462232459,-1000.0,0.0003,14]
[311847683,1705462232469,-243.87038791,0.0003,4]
[311847685,1705462232479,-306.0,0.0003,2]
[311847687,1705462232488,-1054.16078813,0.0003,4]
[311847689,1705462232498,-154.9690062,0.00030023,2]
[311847691,1705462232507,-2999.3,0.00030026,3]
[311847693,1705462232516,-2499.42,0.00030026,3]
[311847695,1705462232526,-154.27370264,0.00030034,7]
[311847697,1705462232536,-2100.6644957,0.00030035,4]
[311847699,1705462232545,-16171.60908519,0.00030036,2]
[311847757,1705462238237,-2082.85,0.00030026,3]
[311847758,1705462238246,-487.37507097,0.00030036,2]
[311847759,1705462238266,-259341.01584384,0.00030036,2]
[311847760,1705462238275,-2823.17395231,0.00030134,4]
[311847761,1705462238284,-630.75243678,0.00030134,4]
[311847762,1705462238294,-856.53608784,0.00030134,2]
[311847763,1705462238304,-2783.46908753,0.00030135,4]
[311847764,1705462238313,-600.0,0.00030135,2]
[311847765,1705462238323,-500.0,0.00030135,2]
[311847766,1705462238333,-500.0,0.00030135,2]
[311847767,1705462238343,-500.0,0.00030135,2]
[311847768,1705462238351,-500.0,0.00030135,2]
[311847770,1705462238361,-500.0,0.00030135,2]
[311847771,1705462238370,-500.0,0.00030135,2]
[311847772,1705462238379,-500.0,0.00030135,2]
[311847773,1705462238389,-500.0,0.00030135,2]
[311847774,1705462238398,-191.12546027,0.00030135,2]
[311847775,1705462238408,-500.0,0.00030135,2]
[311847776,1705462238417,-500.0,0.00030135,2]
[311847777,1705462238427,-642.86800785,0.00030135,2]
[311847778,1705462238436,-231.08915659,0.00030135,2]
[311847779,1705462238446,-377.24190838,0.00030135,2]
[311847780,1705462238455,-408.33508286,0.00030135,2]
[311847781,1705462238465,-500.0,0.00030135,2]
[311847782,1705462238474,-500.0,0.00030135,2]
[311847784,1705462238483,-500.0,0.00030135,2]
[311847786,1705462238492,-500.0,0.00030135,2]
[311847787,1705462238501,-500.0,0.00030135,2]
[311847789,1705462238511,-500.0,0.00030135,2]
[311847791,1705462238520,-500.0,0.00030135,2]
[311847793,1705462238529,-449.23632605,0.00030135,2]
[311847795,1705462238538,-500.0,0.00030135,2]
[311847797,1705462238547,-500.0,0.00030135,2]
[311847799,1705462238556,-500.0,0.00030135,2]
[311847801,1705462238565,-500.0,0.00030135,2]
[311847803,1705462238574,-500.0,0.00030135,2]
[311847805,1705462238583,-500.0,0.00030135,2]
[311847807,1705462238592,-500.0,0.00030135,2]
[311847809,1705462238601,-616.38549691,0.00030135,2]
[311847811,1705462238610,-500.0,0.00030136,2]
[311847813,1705462238619,-164.71281458,0.00030136,2]
[311847814,1705462238628,-500.0,0.00030136,2]
[311847816,1705462238637,-500.0,0.00030136,2]
[311847818,1705462238646,-257.46206027,0.00030136,2]
[311847820,1705462238655,-500.0,0.00030136,2]
[311847822,1705462238664,-500.0,0.00030136,2]
[311847824,1705462238674,-500.0,0.00030136,2]
[311847826,1705462238683,-500.0,0.00030136,2]
[311847828,1705462238692,-500.0,0.00030136,2]
[311847830,1705462238701,-500.0,0.00030136,2]
[311847832,1705462238710,-500.0,0.00030136,2]
[311847834,1705462238719,-500.0,0.00030136,2]
[311847836,1705462238728,-520.75,0.00030136,2]
[311847838,1705462238737,-500.0,0.00030136,2]
[311847840,1705462238746,-500.0,0.00030136,2]
[311847842,1705462238755,-500.0,0.00030136,2]
[311847843,1705462238765,-500.0,0.00030136,2]
[311847844,1705462238774,-500.0,0.00030136,2]
[311847845,1705462238784,-508.74722001,0.00030136,2]
[311847846,1705462238794,-500.0,0.00030136,2]
[311847847,1705462238803,-1564.07,0.00030136,2]
[311847848,1705462238813,-500.0,0.00030136,2]
[311847849,1705462238823,-500.0,0.00030136,2]
[311847850,1705462238834,-500.0,0.00030136,2]
[311847851,1705462238844,-500.0,0.00030136,2]
[311847852,1705462238854,-500.0,0.00030136,2]
[311847853,1705462238865,-500.0,0.00030136,2]
[311847854,1705462238874,-500.0,0.00030136,2]
[311847855,1705462238884,-500.0,0.00030136,2]
[311847856,1705462238894,-500.0,0.00030136,2]
[311847857,1705462238903,-500.0,0.00030136,2]
[311847858,1705462238912,-500.0,0.00030136,2]
[311847859,1705462238922,-500.0,0.00030136,2]
[311847860,1705462238932,-500.0,0.00030136,2]
[311847861,1705462238943,-500.0,0.00030136,2]
[311847862,1705462238952,-500.0,0.00030136,2]
[311847863,1705462238962,-500.0,0.00030136,2]
[311847864,1705462238971,-500.0,0.00030136,2]
[311847865,1705462238980,-501.49306401,0.00030136,2]
[311847866,1705462238989,-500.0,0.00030136,2]
[311847867,1705462238998,-1000.0,0.00030136,2]
[311847868,1705462239008,-882.42,0.00030136,2]
[311847869,1705462239017,-500.0,0.00030136,2]
[311847870,1705462239029,-500.0,0.00030136,2]
[311847871,1705462239039,-500.0,0.00030136,2]
[311847872,1705462239049,-500.0,0.00030136,2]
[311847873,1705462239062,-311.47511361,0.00030136,2]
[311847874,1705462239072,-500.0,0.00030136,2]